fUST/lending_fUST_20240904
["ID","MTS","AMOUNT","RATE_DAILY","PERIOD"]
[337141283,1725451838627,-500.0,0.00024658,2]
[337141284,1725451838637,-500.0,0.00024658,2]
[337141285,1725451838646,-500.0,0.00024658,2]
[337141286,1725451838655,-506.76064696,0.00024658,2]
[337141287,1725451838664,-500.0,0.00024658,2]
[337141288,1725451838674,-500.0,0.00024658,2]
[337141289,1725451838683,-500.0,0.00024658,2]
[337141290,1725451838692,-500.0,0.00024658,2]
[337141291,1725451838702,-500.0,0.00024658,2]
[337141292,1725451838712,-500.0,0.00024658,2]
[337141293,1725451838721,-500.0,0.00024658,2]
[337141294,1725451838731,-500.0,0.00024658,2]
[337141295,1725451838741,-219.6101696,0.00024658,2]
[337141296,1725451838751,-500.0,0.00024658,2]
[337141297,1725451838760,-500.0,0.00024658,2]
[337141298,1725451838770,-500.0,0.00024658,2]
[337141299,1725451838779,-500.0,0.00024658,2]
[337141300,1725451838788,-500.0,0.00024658,2]
[337141301,1725451838798,-500.0,0.00024658,2]
[337141302,1725451838808,-500.0,0.00024658,2]
[337141303,1725451838818,-500.0,0.00024658,2]
[337141304,1725451838828,-500.0,0.00024658,2]
[337141305,1725451838838,-500.0,0.00024658,2]
[337141306,1725451838852,-500.0,0.00024658,2]
[337141307,1725451838862,-500.0,0.00024658,2]
[337141308,1725451838873,-500.0,0.00024658,2]
[337141309,1725451838884,-500.0,0.00024658,2]
[337141310,1725451838894,-500.0,0.00024658,2]
[337141311,1725451838904,-500.0,0.00024658,2]
[337141312,1725451838914,-500.0,0.00024658,2]
[337141313,1725451838924,-500.0,0.00024658,2]
[337141314,1725451838933,-500.0,0.00024658,2]
[337141315,1725451838943,-299.99999999,0.00024658,2]
[337141316,1725451838952,-500.0,0.00024658,2]
[337141317,1725451838962,-500.0,0.00024658,2]
[337141318,1725451838971,-500.0,0.00024658,2]
[337141319,1725451838981,-322.5,0.00024658,2]
[337141320,1725451838990,-500.0,0.00024673,2]
[337141321,1725451839000,-501.84631074,0.00024673,2]
[337141322,1725451839010,-190.70392364,0.00024673,2]
[337141323,1725451839020,-500.0,0.00024673,2]
[337141324,1725451839029,-530.72255491,0.00024673,2]
[337141325,1725451839040,-500.0,0.00024673,2]
[337141326,1725451839050,-288083.05,0.000247,14]
[337141327,1725451839062,-2216.34,0.00024712,3]
[337141328,1725451839071,-1108.16,0.00024712,3]
[337141329,1725451839081,-554.08,0.00024712,3]
[337141330,1725451839090,-1000.0,0.00024748,2]
[337141331,1725451839100,-1489.1463444,0.00024787,2]
[337141332,1725451839112,-1500.0,0.00024819,2]
[337141333,1725451839122,-587.0,0.00024846,2]
[337141334,1725451839131,-1000.0,0.00025221,2]
[337141335,1725451839143,-618.62345339,0.00025221,2]
[337141336,1725451839153,-501.36411391,0.00025221,2]
[337141337,1725451839163,-67518.3927801,0.00025263,2]
[337141338,1725451839173,-2254.35075522,0.00025273,2]
[337141340,1725451839183,-587.0,0.00025408,2]
[337141342,1725451839193,-465.47878467,0.00025646,2]
[337141344,1725451839202,-2000.0,0.00025924,2]
[337141345,1725451839212,-4920.04197297,0.00025973,2]
[337141346,1725451839222,-1500.0,0.00026119,2]
[337141347,1725451839231,-2069.54496008,0.00026268,2]
[337141348,1725451839247,-2850.49701289,0.00026268,2]
[337141349,1725451839256,-2254.35075522,0.00026273,2]
[337141350,1725451839266,-1489.1463444,0.00026301,2]
[337141351,1725451839277,-3000.0,0.000264,2]
[337141352,1725451839288,-3000.0,0.0002641,2]
[337141353,1725451839298,-3399.17625,0.0002642,2]
[337141354,1725451839307,-4920.04197297,0.00026491,2]
[337141355,1725451839317,-4920.04197297,0.00026643,2]
[337141356,1725451839326,-7537.5897201,0.00027,2]
[337141357,1725451839335,-163.0,0.00027,2]
[337141359,1725451839346,-1000.0,0.00027,2]
[337141360,1725451839356,-823.0,0.00027027,2]
[337141361,1725451839366,-567.33,0.000271,14]
[337141363,1725451839535,-1658.67,0.000271,14]
[337141364,1725451839553,-4920.04197297,0.00027116,2]
[337141366,1725451839563,-1000.0,0.00027154,2]
[337141367,1725451839572,-1000.0,0.00027189,2]
[337141368,1725451839582,-1000.0,0.00027203,2]
[337141369,1725451839591,-1000.0,0.00027207,2]
[337141370,1725451839601,-1000.0,0.00027211,2]
[337141371,1725451839610,-1000.0,0.00027213,2]
[337141372,1725451839620,-1000.0,0.00027222,2]
[337141373,1725451839629,-2000.0,0.00027224,2]
[337141374,1725451839639,-1000.0,0.00027227,2]
[337141375,1725451839648,-487.53658064,0.00027228,2]
[337141376,1725451839662,-512.46341936,0.00027228,2]
[337141377,1725451839672,-1000.0,0.00027234,2]
[337141378,1725451839682,-1000.0,0.00027252,2]
[337141379,1725451839692,-2254.35075522,0.00027273,2]
[337141380,1725451839701,-150.0,0.00027289,2]
[337141381,1725451839710,-1000.0,0.00027296,2]
[337141382,1725451839719,-4920.04197298,0.00027319,2]
[337141383,1725451839730,-1000.0,0.00027326,2]
[337141384,1725451839739,-1000.0,0.00027337,2]
[337141385,1725451839749,-1000.0,0.00027345,2]
[337141386,1725451839759,-579.31434795,0.00027349,2]
[337141387,1725451839769,-1000.0,0.0002735,2]
[337141388,1725451839779,-1000.0,0.00027365,2]
[337141389,1725451839789,-70.59969091,0.00027373,2]
[337141390,1725451839802,-429.40030909,0.00027373,2]
[337141391,1725451839812,-150.0,0.00027373,2]
[337141392,1725451839823,-501.53396496,0.00027397,2]
[337141394,1725451839834,-3986.43,0.00027397,2]
[337141395,1725451839844,-500.0,0.00027397,2]
[337141396,1725451839854,-500.0,0.00027397,2]
[337141397,1725451839865,-500.0,0.00027397,2]
[337141398,1725451839874,-500.0,0.00027397,2]
[337141399,1725451839884,-500.0,0.00027397,2]
[337141400,1725451839894,-500.0,0.00027397,2]
[337141401,1725451839905,-500.0,0.00027397,2]
[337141402,1725451839915,-500.0,0.00027397,2]
[337141403,1725451839924,-645.07954192,0.00027397,2]
[337141404,1725451839933,-500.0,0.00027397,2]
[337141405,1725451839942,-504.52283279,0.00027397,2]
[337141406,1725451839952,-500.0,0.00027397,2]
[337141407,1725451839962,-500.0,0.00027397,2]
[337141408,1725451839973,-500.0,0.00027397,2]
[337141409,1725451839983,-500.0,0.00027397,2]
[337141410,1725451839993,-500.0,0.00027397,2]
[337141411,1725451840003,-500.0,0.00027397,2]
[337141412,1725451840013,-500.0,0.00027397,2]
[337141413,1725451840024,-500.0,0.00027397,2]
[337141414,1725451840034,-500.0,0.00027397,2]
[337141415,1725451840045,-500.0,0.00027397,2]
[337141416,1725451840055,-500.0,0.00027397,2]
[337141417,1725451840069,-500.0,0.00027397,2]
[337141418,1725451840080,-500.0,0.00027397,2]
[337141419,1725451840091,-500.0,0.00027397,2]
[337141420,1725451840103,-500.0,0.00027397,2]
[337141421,1725451840114,-500.0,0.00027397,2]
[337141422,1725451840123,-119.41615735,0.00027397,2]
[337141423,1725451840140,-380.58384265,0.00027397,2]
[337141424,1725451840151,-500.0,0.00027397,2]
[337141425,1725451840161,-500.0,0.00027397,2]
[337141426,1725451840171,-390.23135934,0.00027397,2]
[337141427,1725451840180,-500.0,0.00027397,2]
[337141428,1725451840189,-500.0,0.00027397,2]
[337141429,1725451840199,-296.30526398,0.00027397,2]
[337141430,1725451840209,-500.0,0.00027397,2]
[337141431,1725451840219,-500.0,0.00027397,2]
[337141432,1725451840230,-500.0,0.00027397,2]
[337141433,1725451840240,-500.0,0.00027397,2]
[337141434,1725451840250,-500.0,0.00027397,2]
[337141435,1725451840260,-500.0,0.00027397,2]
[337141436,1725451840270,-500.0,0.00027397,2]
[337141437,1725451840279,-500.0,0.00027397,2]
[337141438,1725451840290,-224.4364616,0.00027397,2]
[337141439,1725451840367,-1000.0,0.00023287,7]
[337141440,1725451840376,-1000.0,0.00023287,7]
[337141441,1725451840385,-1000.0,0.00023287,7]
[337141442,1725451840394,-1000.0,0.00023287,7]
[337141443,1725451840405,-292.974,0.00027002,2]
[337141444,1725451840414,-275.5635384,0.00027397,2]
[337141445,1725451840424,-500.0,0.00027397,2]
[337141446,1725451840434,-500.0,0.00027397,2]
[337141447,1725451840444,-500.0,0.00027397,2]
[337141448,1725451840455,-500.0,0.00027397,2]
[337141449,1725451840465,-500.0,0.00027397,2]
[337141450,1725451840475,-2272.19,0.00027397,2]
[337141451,1725451840485,-500.0,0.00027397,2]
[337141452,1725451840494,-500.0,0.00027397,2]
[337141453,1725451840505,-500.0,0.00027397,2]
[337141454,1725451840514,-500.0,0.00027397,2]
[337141455,1725451840524,-500.0,0.00027397,2]
[337141456,1725451840534,-1767.79,0.00027397,2]
[337141457,1725451840544,-500.0,0.00027397,2]
[337141458,1725451840554,-500.0,0.00027397,2]
[337141459,1725451840563,-500.0,0.00027397,2]
[337141460,1725451840574,-500.0,0.00027397,2]
[337141461,1725451840584,-500.0,0.00027397,2]
[337141462,1725451840593,-500.0,0.00027397,2]
[337141463,1725451840603,-500.0,0.00027397,2]
[337141464,1725451840612,-500.0,0.00027397,2]
[337141465,1725451840622,-500.0,0.00027397,2]
[337141466,1725451840632,-500.0,0.00027397,2]
[337141467,1725451840641,-500.0,0.00027397,2]
[337141468,1725451840651,-500.0,0.00027397,2]
[337141469,1725451840660,-500.0,0.00027397,2]
[337141470,1725451840669,-500.0,0.00027397,2]
[337141471,1725451840679,-500.0,0.00027397,2]
[337141472,1725451840688,-500.0,0.00027397,2]
[337141473,1725451840698,-503.05006732,0.00027397,2]
[337141474,1725451840707,-500.0,0.00027397,2]
[337141475,1725451840716,-1007.76,0.00027397,2]
[337141476,1725451840727,-1007.76,0.00027397,2]
[337141477,1725451840737,-1007.76,0.00027397,2]
[337141478,1725451840746,-1007.76,0.00027397,2]
[337141479,1725451840755,-1007.76,0.00027397,2]
[337141480,1725451840765,-1007.76,0.00027397,2]
[337141481,1725451840774,-1007.76,0.00027397,2]
[337141482,1725451840784,-1007.76,0.00027397,2]
[337141483,1725451840794,-1007.76,0.00027397,2]
[337141484,1725451840804,-1007.76,0.00027397,2]
[337141485,1725451840813,-1007.76,0.00027397,2]
[337141486,1725451840822,-1007.76,0.00027397,2]
[337141487,1725451840832,-500.0,0.00027397,2]
[337141488,1725451840842,-1007.76,0.00027397,2]
[337141489,1725451840851,-1007.76,0.00027397,2]
[337141490,1725451840861,-1007.76,0.00027397,2]
[337141491,1725451840871,-500.0,0.00027397,2]
[337141492,1725451840881,-1007.76,0.00027397,2]
[337141493,1725451840890,-500.0,0.00027397,2]
[337141494,1725451840900,-500.0,0.00027397,2]
[337141495,1725451840910,-1007.76,0.00027397,2]
[337141496,1725451840919,-1500.04,0.00027397,2]
[337141497,1725451840929,-1007.76,0.00027397,2]
[337141498,1725451840939,-1007.76,0.00027397,2]
[337141499,1725451840949,-1007.76,0.00027397,2]
[337141500,1725451840959,-1007.76,0.00027397,2]
[337141501,1725451840968,-500.09930121,0.00027397,2]
[337141502,1725451840978,-1007.76,0.00027397,2]
[337141503,1725451840988,-1007.76,0.00027397,2]
[337141504,1725451840997,-1007.88966842,0.00027397,2]
[337141505,1725451841007,-507.6836312,0.00027397,2]
[337141506,1725451841017,-505.28446612,0.00027397,2]
[337141507,1725451841027,-500.0,0.00027397,2]
[337141508,1725451841036,-500.0,0.00027397,2]
[337141509,1725451841046,-500.0,0.00027397,2]
[337141510,1725451841055,-158.29133516,0.00027397,2]
[337141511,1725451841067,-500.0,0.00027397,2]
[337141512,1725451841077,-500.0,0.00027397,2]
[337141513,1725451841086,-500.0,0.00027397,2]
[337141514,1725451841096,-500.0,0.00027397,2]
[337141515,1725451841108,-500.0,0.00027397,2]
[337141516,1725451841117,-500.0,0.00027397,2]
[337141517,1725451841127,-500.0,0.00027397,2]
[337141518,1725451841138,-504.82470072,0.00027397,2]
[337141519,1725451841148,-500.0,0.00027397,2]
[337141520,1725451841158,-500.0,0.00027397,2]
[337141521,1725451841167,-500.0,0.00027397,2]
[337141522,1725451841177,-73.65974684,0.00027397,2]
[337141523,1725451841198,-426.34025316,0.00027397,2]
[337141524,1725451841208,-500.0,0.00027397,2]
[337141525,1725451841217,-500.0,0.00027397,2]
[337141526,1725451841227,-546.98642526,0.00027397,2]
[337141527,1725451841237,-500.0,0.00027397,2]
[337141528,1725451841247,-500.0,0.00027397,2]
[337141529,1725451841256,-500.0,0.00027397,2]
[337141530,1725451841266,-500.0,0.00027397,2]
[337141531,1725451841276,-500.0,0.00027397,2]
[337141532,1725451841286,-500.0,0.00027397,2]
[337141533,1725451841296,-528.96697157,0.00027397,2]
[337141534,1725451841306,-500.0,0.00027397,2]
[337141535,1725451841317,-500.0,0.00027397,2]
[337141536,1725451841326,-217.39492495,0.00027397,2]
[337141537,1725451841337,-500.0,0.00027397,2]
[337141538,1725451841346,-500.0,0.00027397,2]
[337141539,1725451841355,-500.0,0.00027397,2]
[337141540,1725451841365,-444.86523842,0.00027397,2]
[337141541,1725451841375,-500.0,0.00027397,2]
[337141542,1725451841384,-500.0,0.00027397,2]
[337141543,1725451841394,-500.0,0.00027397,2]
[337141544,1725451841404,-500.0,0.00027397,2]
[337141545,1725451841413,-500.0,0.00027397,2]
[337141546,1725451841422,-500.0,0.00027397,2]
[337141547,1725451841433,-500.0,0.00027397,2]
[337141548,1725451841442,-500.0,0.00027397,2]
[337141549,1725451841452,-500.0,0.00027397,2]
[337141550,1725451841462,-517.15045269,0.00027397,2]
[337141551,1725451841471,-500.0,0.00027397,2]
[337141552,1725451841481,-543.96279883,0.00027397,2]
[337141553,1725451841490,-500.0,0.00027397,2]
[337141554,1725451841500,-500.0,0.00027397,2]
[337141555,1725451841509,-500.0,0.00027397,2]
[337141556,1725451841518,-500.0,0.00027397,2]
[337141557,1725451841527,-500.0,0.00027397,2]
[337141558,1725451841538,-153.87761773,0.00027397,2]
[337141559,1725451841548,-500.0,0.00027397,2]
[337141560,1725451841557,-500.0,0.00027397,2]
[337141561,1725451841567,-500.0,0.00027397,2]
[337141562,1725451841577,-597.55547713,0.00027397,2]
[337141563,1725451841586,-500.0,0.00027397,2]
[337141564,1725451841595,-501.56231904,0.00027397,2]
[337141565,1725451841605,-366.66676412,0.00027397,2]
[337141566,1725451841615,-500.0,0.00027397,2]
[337141567,1725451841624,-500.0,0.00027397,2]
[337141568,1725451841634,-500.0,0.00027397,2]
[337141569,1725451841644,-500.0,0.00027397,2]
[337141570,1725451841654,-208.70691742,0.00027397,2]
[337141571,1725451841663,-501.6401002,0.00027397,2]
[337141572,1725451841673,-500.0,0.00027397,2]
[337141573,1725451841683,-500.0,0.00027397,2]
[337141574,1725451841692,-500.0,0.00027397,2]
[337141575,1725451841701,-500.0,0.00027397,2]
[337141576,1725451841711,-505.88458329,0.00027397,2]
[337141577,1725451841720,-500.0,0.00027397,2]
[337141578,1725451841855,-500.0,0.00027397,2]
[337141579,1725451841865,-500.0,0.00027397,2]
[337141580,1725451841876,-500.0,0.00027397,2]
[337141581,1725451841886,-500.0,0.00027397,2]
[337141582,1725451841895,-500.0,0.00027397,2]
[337141583,1725451841905,-500.0,0.00027397,2]
[337141584,1725451841914,-500.0,0.00027397,2]
[337141585,1725451841923,-500.0,0.00027397,2]
[337141586,1725451841933,-500.0,0.00027397,2]
[337141587,1725451841942,-505.98891622,0.00027397,2]
[337141588,1725451841952,-500.0,0.00027397,2]
[337141589,1725451841962,-500.0,0.00027397,2]
[337141590,1725451841971,-594.69950516,0.00027397,3]
[337141591,1725451841981,-500.0,0.00027397,2]
[337141592,1725451841990,-500.0,0.00027397,2]
[337141593,1725451842000,-502.07962527,0.00027397,2]
[337141594,1725451842010,-500.0,0.00027397,2]
[337141595,1725451842020,-500.0,0.00027397,2]
[337141596,1725451842030,-500.0,0.00027397,2]
[337141597,1725451842040,-500.0,0.00027397,2]
[337141598,1725451842049,-500.0,0.00027397,2]
[337141599,1725451842062,-500.0,0.00027397,2]
[337141600,1725451842072,-501.90900343,0.00027397,2]
[337141601,1725451842082,-500.0,0.00027397,2]
[337141602,1725451842092,-500.0,0.00027397,2]
[337141603,1725451842103,-500.0,0.00027397,2]
[337141604,1725451842112,-141.33911212,0.00027397,2]
[337141628,1725451842950,-650.5124717,0.00023287,7]
[337141636,1725451993026,300.0,0.0002,120]
[337141639,1725452188131,-1000.0,0.00021917,2]
[337141640,1725452188153,-1000.0,0.00021917,2]
[337141641,1725452188176,-926.12384136,0.00021917,2]
[337141642,1725452188202,-300.0,0.00022094,2]
[337141643,1725452188225,-300.0,0.00022094,2]
[337141644,1725452188249,-24900.0,0.00022095,2]
[337141645,1725452188272,-250.0,0.000229,2]
[337141646,1725452188296,-250.0,0.00022963,2]
[337141647,1725452188320,-250.0,0.00023025,2]
[337141648,1725452188344,-250.0,0.00023088,2]
[337141649,1725452188366,-250.0,0.00023151,2]
[337141650,1725452188388,-206.37053747,0.00023176,2]
[337141651,1725452188412,-9925.50562117,0.00023186,2]
[337141653,1725452232145,300.0,0.0002,120]
[337141654,1725452252699,500.0,0.0002,2]
[337141656,1725452351340,1000.0,0.0002,2]
[337141661,1725452412493,151.0,0.0001999,2]
[337141676,1725452888872,15990.11390591,0.00018447,2]
[337141677,1725452895757,3104.50640738,0.000167,2]
[337141681,1725452903295,396.97386237,0.000123,2]
[337141683,1725452914924,1995.30268692,0.000176,2]
[337141684,1725452922261,4264.40292275,0.0002066,7]
[337141685,1725452926376,823.88916239,0.00020377,2]
[337141686,1725452927230,5962.37735271,0.00014,2]
[337141687,1725452927264,13356.95815223,0.00014,2]
[337141688,1725452927496,99440.51920196,0.0002,2]
[337141689,1725452927710,410.42681097,0.0001,2]
[337141690,1725452928048,22001.64139004,0.0001999,2]
[337141691,1725452928074,2579.37598408,0.0001999,2]
[337141692,1725452928865,155.53126134,0.0002,2]
[337141730,1725453032353,-533.9046886,0.00021613,2]
[337141731,1725453032365,-300.0,0.0002185,2]
[337141732,1725453032374,-8252.4518897,0.00021851,2]
[337141733,1725453032391,-1931.7687533,0.00021851,2]
[337141747,1725453038142,-2419.91591649,0.00021851,2]
[337141754,1725453038200,-11119.2328345,0.00021851,2]
[337141756,1725453038212,-396.95621832,0.00021999,2]
[337141758,1725453038222,-337.28901817,0.00021999,2]
[337141760,1725453038233,-300.0,0.00022,120]
[337141761,1725453038245,-12995.48030084,0.00022,30]
[337141762,1725453038373,-62976.88539102,0.00022,30]
[337141763,1725453038384,-3000.0,0.00022051,2]
[337141764,1725453038395,-250.0,0.00022668,2]
[337141765,1725453038405,-250.0,0.0002273,2]
[337141766,1725453038418,-250.0,0.00022792,2]
[337141767,1725453038429,-250.0,0.00022854,2]
[337141768,1725453038442,-250.0,0.00022916,2]
[337141769,1725453038452,-250.0,0.00022978,2]
[337141770,1725453038461,-239.99202206,0.00023,2]
[337141771,1725453038471,-11423.30610364,0.00023,2]
[337141772,1725453038482,-250.0,0.00023041,2]
[337141773,1725453038492,-250.0,0.00023103,2]
[337141774,1725453038501,-250.0,0.00023165,2]
[337141775,1725453038512,-250.0,0.00023227,2]
[337141776,1725453038522,-1000.0,0.00023287,7]
[337141777,1725453038532,-1000.0,0.00023287,7]
[337141778,1725453038543,-1000.0,0.00023287,7]
[337141779,1725453038554,-1000.0,0.00023287,7]
[337141780,1725453038564,-1000.0,0.00023287,7]
[337141781,1725453038574,-1000.0,0.00023287,7]
[337141782,1725453038584,-1000.0,0.00023287,7]
[337141783,1725453038593,-1000.0,0.00023287,7]
[337141784,1725453038603,-1000.0,0.00023287,7]
[337141785,1725453038613,-582.54094188,0.00023287,7]
[337141786,1725453038623,-250.0,0.00023289,2]
[337141787,1725453038633,-250.0,0.00023351,2]
[337141788,1725453038643,-250.0,0.00023414,2]
[337141789,1725453038654,-250.0,0.00023476,2]
[337141790,1725453038664,-160.51865095,0.000235,2]
[337141791,1725453038675,-465.47878467,0.000235,2]
[337141792,1725453038684,-250.0,0.00023538,2]
[337141793,1725453038694,-216.929649,0.00023549,2]
[337141794,1725453038704,-250.0,0.000236,2]
[337141795,1725453038714,-250.0,0.00023662,2]
[337141796,1725453038723,-248.6345995,0.00023693,2]
[337141797,1725453038733,-250.0,0.00023724,2]
[337141798,1725453038742,-24900.0,0.00023773,2]
[337141799,1725453038752,-250.0,0.00023787,2]
[337141800,1725453038762,-250.0,0.00023849,2]
[337141801,1725453038772,-300.0,0.00024,120]
[337141802,1725453038782,-7393.85123074,0.00024,60]
[337141803,1725453038792,-319.54953753,0.00024,2]
[337141804,1725453038801,-420.0,0.00024035,2]
[337141805,1725453038812,-753.808978,0.00024658,2]
[337141806,1725453038823,-500.0,0.00024658,2]
[337141807,1725453038833,-500.0,0.00024658,2]
[337141808,1725453038843,-500.0,0.00024658,2]
[337141809,1725453038853,-532.9260647,0.00024658,2]
[337141810,1725453038862,-500.0,0.00024658,2]
[337141811,1725453038873,-551.96101696,0.00024658,2]
[337141812,1725453038882,-844.19028642,0.00024898,2]
[337141813,1725453038892,-1029.92728206,0.000249,2]
[337141814,1725453038902,-383.76883785,0.00024999,2]
[337141815,1725453038912,-179.73042671,0.00024999,2]
[337141816,1725453038922,-500.0,0.00024999,2]
[337141817,1725453038933,-215.35454027,0.00024999,2]
[337141818,1725453038943,-500.0,0.00024999,2]
[337141819,1725453038954,-500.0,0.00024999,2]
[337141820,1725453038965,-500.0,0.00024999,2]
[337141821,1725453038975,-628.05874354,0.00024999,2]
[337141822,1725453038985,-500.0,0.00024999,2]
[337141823,1725453038996,-3339.48148332,0.00025,7]
[337141824,1725453039006,-3346.57422004,0.00025,7]
[337141825,1725453039016,-310.39353344,0.00025,60]
[337141826,1725453039027,-129626.67510741,0.00025,2]
[337141827,1725453039036,-794.32379491,0.000263,2]
[337141828,1725453039046,-588.088363,0.000264,2]
[337141829,1725453039055,-587.0,0.00026438,2]
[337141830,1725453039065,-794.32379489,0.00026543,2]
[337141831,1725453039075,-13299.0,0.000266,10]
[337141832,1725453039084,-150.112234,0.000266,6]
[337141833,1725453039094,-794.32379489,0.00026787,2]
[337141834,1725453039104,-18855.12310558,0.000269,2]
[337141835,1725453039114,-150.112233,0.000269,7]
[337141836,1725453039124,-300.0,0.00027,120]
[337141837,1725453039134,-163.0,0.00027,2]
[337141838,1725453039143,-560.28673538,0.00027,120]
[337141839,1725453039153,-794.32379489,0.0002703,2]
[337141840,1725453039164,-2312.39516362,0.000271,14]
[337141841,1725453039173,-3494.79346652,0.00027117,2]
[337141842,1725453039183,-3494.79346653,0.00027129,2]
[337141843,1725453039193,-1180.69888242,0.00027159,2]
[337141844,1725453039204,-1000.0,0.00027169,2]
[337141845,1725453039214,-21889.5366993,0.0002718,3]
[337141846,1725453039224,-1012.96631504,0.00027237,2]
[337141847,1725453039235,-68105.44613259,0.00027259,15]
[337141848,1725453039245,-23799.18777322,0.00027259,3]
[337141849,1725453039259,-1426.16001238,0.00027259,3]
[337141850,1725453039271,-220681.8224024,0.00027259,3]
[337141851,1725453039281,-50114.884822,0.00027259,2]
[337141852,1725453039291,-63416.59291033,0.0002726,3]
[337141854,1725453040229,-59430.78486852,0.0002726,3]
[337141855,1725453040240,-106.20731515,0.0002726,3]
[337141856,1725453040250,-4643.42341395,0.0002726,2]
[337141857,1725453040369,-35234.60971844,0.0002726,2]
[337141858,1725453040381,-4223.24243635,0.0002726,2]
[337141859,1725453042975,-1260.10457278,0.0002726,2]
[337141860,1725453043265,-90.58891449,0.0002726,2]
[337143247,1725454238203,-612.09494698,0.00023594,2]
[337143248,1725454238219,-192.41243596,0.00023594,2]
[337143249,1725454238234,-250.0,0.00023857,2]
[337143250,1725454238243,-250.0,0.00023922,2]
[337143251,1725454238254,-250.0,0.00023988,2]
[337143252,1725454238263,-166.66666666,0.00024028,2]
[337143253,1725454238274,-250.0,0.00024053,2]
[337143254,1725454238286,-368.34692209,0.00024118,2]
[337143255,1725454238302,-99.76355191,0.00024118,2]
[337143256,1725454238314,-250.0,0.00024119,2]
[337143257,1725454238323,-176.495913,0.00024129,2]
[337143258,1725454238333,-250.0,0.00024184,2]
[337143259,1725454238343,-250.0,0.0002425,2]
[337143260,1725454238353,-250.0,0.00024315,2]
[337143261,1725454238365,-300.0,0.00024379,2]
[337143262,1725454238374,-300.0,0.00024379,2]
[337143263,1725454238384,-24900.0,0.0002438,2]
[337143264,1725454238395,-250.0,0.0002438,2]
[337143265,1725454238404,-250.0,0.00024446,2]
[337143266,1725454238414,-231.859692,0.00024484,2]
[337143267,1725454238424,-250.0,0.00024511,2]
[337143268,1725454238433,-250.0,0.00024577,2]
[337143269,1725454238444,-250.0,0.00024642,2]
[337143270,1725454238454,-745.942698,0.00024658,2]
[337143271,1725454238464,-250.0,0.00024708,2]
[337143272,1725454238474,-250.0,0.00024773,2]
[337143273,1725454238483,-250.0,0.00024838,2]
[337143274,1725454238493,-250.0,0.00024904,2]
[337143275,1725454238504,-250.0,0.00024969,2]
[337143276,1725454238514,-1000.0,0.00025,2]
[337143277,1725454238525,-250.0,0.00025035,2]
[337143278,1725454238535,-250.0,0.000251,2]
[337143279,1725454238546,-7190.27233777,0.00025763,2]
[337143280,1725454238555,-181.0360579,0.00025883,2]
[337143281,1725454238565,-150.0,0.000264,2]
[337143282,1725454238575,-7190.27233774,0.00026726,2]
[337143283,1725454238584,-420.0,0.00026817,2]
[337143284,1725454238594,-609.76796945,0.00026865,10]
[337143285,1725454238603,-5558.16520797,0.00026932,2]
[337143286,1725454238612,-1000.0,0.00027,2]
[337143287,1725454238623,-164.0,0.00027,2]
[337143288,1725454238632,-256.4630906,0.00027016,2]
[337143289,1725454238642,-150.0,0.00027022,2]
[337143290,1725454238651,-1966.53855574,0.00027027,2]
[337143291,1725454238661,-448.42442974,0.000271,120]